bitfinex-derivatives/quotes_SOLF0:USTF0_20250929
["timestamp","ask_amount","ask_price","bid_price","bid_amount"]
[1759118178587,4.2784,210.28,210.22,7.81]
[1759118179685,5.66791658,210.28,210.22,7.81]
[1759118180184,9.34951658,210.29,210.22,7.81]
[1759118181580,13.62781658,210.29,210.22,7.81]
[1759118182389,12.2383,210.29,210.22,7.81]
[1759118184089,13.62781658,210.29,210.22,7.81]
[1759118184486,1.38951658,210.31,210.23,8.82951658]
[1759118184992,1.38951658,210.31,210.24,4.2791]
[1759118185295,1.38951658,210.31,210.25,7.44]
[1759118185487,13.13711658,210.32,210.25,7.44]
[1759118186092,11.7476,210.32,210.25,7.44]
[1759118186289,13.13711658,210.32,210.25,7.44]
[1759118186486,7.47,210.32,210.25,7.44]
[1759118188197,8.85951658,210.32,210.25,7.44]
[1759118188493,7.47,210.32,210.25,7.44]
[1759118188695,13.13721658,210.32,210.25,7.44]
[1759118192098,66.5258,210.37,210.21,11.7197]
[1759118192099,7.47,210.29,210.21,11.7197]
[1759118192295,7.47,210.29,210.22,77.24]
[1759118193001,13.13791658,210.29,210.22,77.24]
[1759118193497,13.13791658,210.29,210.22,81.5194]
[1759118193702,8.85951658,210.29,210.23,7.44]
[1759118194198,7.47,210.36,210.25,7.44]
[1759118194391,7.47,210.32,210.25,7.44]
[1759118195600,7.47,210.3,210.23,43.6594]
[1759118195809,7.47,210.3,210.24,7.44]
[1759118197105,7.47,210.3,210.24,11.719]
[1759118199507,7.47,210.3,210.25,4.2789]
[1759118200604,1.38951658,210.31,210.26,7.44]
[1759118201200,7.47,210.3,210.26,7.44]
[1759118201506,1.38951658,210.31,210.26,7.44]
[1759118202302,7.47,210.3,210.26,7.44]
[1759118202807,1.38951658,210.31,210.26,7.44]
[1759118203311,7.47,210.3,210.26,7.44]
[1759118203500,1.38951658,210.31,210.26,7.44]
[1759118203808,7.47,210.3,210.26,7.44]
[1759118204105,1.38951658,210.31,210.26,7.44]
[1759118204504,7.47,210.3,210.26,7.44]
[1759118205007,1.38951658,210.31,210.26,7.44]
[1759118205209,4.2772,210.34,210.26,7.44]
[1759118205404,1.38951658,210.32,210.26,7.44]
[1759118205709,7.47,210.31,210.26,7.44]
[1759118205910,1.38951658,210.32,210.26,7.44]
[1759118206105,7.47,210.31,210.26,7.44]
[1759118206307,1.38951658,210.32,210.26,7.44]
[1759118206609,7.47,210.31,210.25,11.7189]
[1759118207703,7.47,210.31,210.25,4.2789]
[1759118207907,13.13721658,210.32,210.26,7.44]
[1759118209913,13.13721658,210.32,210.23,5.29531061]
[1759118209914,4.2779,210.31,210.23,11.7194]
[1759118210104,7.47,210.3,210.23,11.7194]
[1759118210313,7.47,210.3,210.23,7.44]
[1759118210610,8.85951658,210.3,210.23,7.44]
[1759118211317,7.47,210.3,210.23,7.44]
[1759118211515,1.38951658,210.29,210.23,7.44]
[1759118211808,7.47,210.27,210.23,7.44]
[1759118212213,4.2785,210.28,210.23,7.44]
[1759118212608,4.2785,210.28,210.21,5.29531061]
[1759118212609,11.7485,210.28,210.22,7.44]
[1759118212805,7.47,210.28,210.22,7.44]
[1759118214616,7.2,210.31,210.24,7.77]
[1759118215018,7.2,210.31,210.26,7.77]
[1759118215208,7.2,210.31,210.25,1.38951658]
[1759118215615,4.2776,210.32,210.26,7.77]
[1759118215812,7.2,210.34,210.26,7.77]
[1759118216617,11.4772,210.34,210.26,7.77]
[1759118218220,7.2,210.34,210.28,7.77]
[1759118219320,11.4767,210.37,210.29,1.38951658]
[1759118219519,1.18828055,210.36,210.3,7.77]
[1759118219719,5.46518055,210.36,210.3,7.77]
[1759118219916,7.2,210.35,210.3,7.77]
[1759118220523,7.2,210.34,210.3,7.77]
[1759118220910,7.2,210.34,210.28,7.77]
[1759118225122,4.2775,210.33,210.26,6.68482719]
[1759118225327,7.2,210.32,210.26,1.38951658]
[1759118226122,7.2,210.32,210.26,5.29531061]
[1759118227218,11.4778,210.32,210.26,5.29531061]
[1759118227424,12.86731658,210.32,210.26,5.29531061]
[1759118227625,7.2,210.31,210.25,13.06531061]
[1759118227920,7.2,210.3,210.25,13.06531061]
[1759118228226,7.2,210.29,210.23,5.29531061]
[1759118228624,12.86771658,210.3,210.24,5.29531061]
[1759118228824,11.4782,210.3,210.24,5.29531061]
[1759118229425,7.2,210.29,210.25,13.06531061]
[1759118229622,7.2,210.29,210.25,7.77]
[1759118229829,4.2782,210.3,210.25,13.06531061]
[1759118230025,4.2782,210.3,210.25,7.77]
[1759118230225,7.2,210.29,210.25,7.77]
[1759118230419,4.2782,210.3,210.25,7.77]
[1759118231126,7.2,210.29,210.25,7.77]
[1759118231326,4.2782,210.3,210.25,7.77]
[1759118232124,7.48,210.29,210.25,7.77]
[1759118232627,4.2782,210.3,210.25,7.77]
[1759118232818,7.48,210.29,210.24,5.29531061]
[1759118233623,4.2782,210.3,210.24,5.29531061]
[1759118233824,4.2784,210.28,210.24,5.29531061]
[1759118234029,7.48,210.27,210.23,5.29531061]
[1759118234225,4.2784,210.28,210.23,5.29531061]
[1759118234529,7.48,210.27,210.23,5.29531061]
[1759118234730,4.2784,210.28,210.23,5.29531061]
[1759118235230,7.48,210.25,210.21,12.60531061]
[1759118235432,7.48,210.25,210.22,7.31]
[1759118238629,7.48,210.27,210.22,7.31]
[1759118239328,4.2784,210.28,210.22,7.31]
[1759118239528,7.48,210.27,210.22,7.31]
[1759118239931,7.48,210.26,210.21,5.29531061]
[1759118240332,7.48,210.26,210.21,7.31]
[1759118240534,7.48,210.26,210.2,5.29531061]
[1759118240831,7.48,210.26,210.21,7.31]
[1759118241031,4.2787,210.27,210.21,5.29531061]
[1759118241234,7.48,210.26,210.2,12.60531061]
[1759118242931,11.7582,210.29,210.21,12.60531061]
[1759118243128,11.7582,210.29,210.23,7.31]
[1759118243129,7.48,210.29,210.23,7.31]
[1759118244728,4.2783,210.29,210.23,7.31]
[1759118245035,7.89,210.33,210.25,7.67]
[1759118245234,4.2777,210.32,210.25,7.67]
[1759118245933,7.89,210.33,210.25,7.67]
[1759118246333,7.89,210.33,210.24,7.67]
[1759118246528,4.2781,210.3,210.24,7.67]
[1759118247336,4.2784,210.29,210.24,7.67]
[1759118247538,7.89,210.28,210.24,7.67]
[1759118248438,7.89,210.33,210.23,7.67]
[1759118248733,7.89,210.32,210.23,5.29531061]
[1759118248938,4.2786,210.28,210.22,12.96531061]
[1759118249239,12.1686,210.28,210.22,12.96531061]
[1759118250134,7.89,210.25,210.22,7.67]
[1759118251142,12.1684,210.28,210.22,7.67]
[1759118251454,7.89,210.28,210.22,12.96531061]
[1759118251939,7.89,210.28,210.24,7.67]
[1759118252342,7.89,210.32,210.24,7.67]
[1759118253638,12.1678,210.32,210.24,7.67]
[1759118255541,12.168,210.3,210.24,7.67]
[1759118256345,12.1675,210.33,210.24,7.67]
[1759118256541,7.89,210.33,210.27,7.67]
[1759118257537,12.1675,210.33,210.27,7.67]
[1759118263655,4.2778,210.32,210.27,7.67]
[1759118263852,7.89,210.31,210.27,7.67]
[1759118264255,4.2778,210.32,210.27,7.67]
[1759118264456,7.89,210.31,210.27,7.67]
[1759118264853,7.89,210.34,210.25,5.29531061]
[1759118265654,66.5332,210.35,210.24,12.96531061]
[1759118265849,7.89,210.33,210.24,12.96531061]
[1759118266054,66.5332,210.35,210.24,12.96531061]
[1759118266252,1.18837984,210.34,210.24,12.96531061]
[1759118266656,7.89,210.33,210.24,12.96531061]
[1759118266856,66.5332,210.35,210.24,12.96531061]
[1759118267051,7.89,210.33,210.24,12.96531061]
[1759118267257,4.2783,210.29,210.24,12.96531061]
[1759118267453,7.89,210.28,210.25,7.67]
[1759118268061,7.89,210.28,210.24,7.67]
[1759118268457,7.89,210.28,210.23,5.29531061]
[1759118269359,7.89,210.28,210.25,7.67]
[1759118269658,7.89,210.27,210.23,5.29531061]
[1759118269858,4.2785,210.28,210.22,5.29531061]
[1759118270161,12.1685,210.28,210.22,12.96531061]
[1759118270762,7.89,210.25,210.22,12.96531061]
[1759118271155,7.89,210.25,210.23,7.67]
[1759118273169,7.89,210.34,210.23,7.67]
[1759118273357,7.89,210.32,210.23,7.67]
[1759118273558,7.89,210.34,210.23,12.96531061]
[1759118273756,7.28,210.32,210.23,7.67]
[1759118273964,4.278,210.3,210.23,12.96531061]
[1759118274166,7.28,210.29,210.23,12.96531061]
[1759118274967,4.2776,210.32,210.23,9.57451061]
[1759118275169,4.2776,210.32,210.25,12.79531061]
[1759118275467,4.2776,210.32,210.26,7.5]
[1759118276672,11.5576,210.32,210.26,7.5]
[1759118278661,4.2772,210.34,210.26,7.5]
[1759118279972,4.2775,210.33,210.26,7.5]
[1759118280168,4.2775,210.33,210.26,12.79531061]
[1759118280674,7.28,210.32,210.26,12.79531061]
[1759118282671,11.5577,210.32,210.26,7.5]
[1759118283866,7.28,210.32,210.26,7.5]
[1759118284070,7.28,210.32,210.26,12.79531061]
[1759118287572,7.28,210.34,210.26,12.79531061]
[1759118288275,66.5317,210.35,210.26,12.79531061]
[1759118288676,7.28,210.29,210.26,12.79531061]
[1759118288872,66.5416,210.32,210.26,5.29531061]
[1759118289077,7.28,210.31,210.25,5.29531061]
[1759118289973,7.28,210.31,210.22,7.5]
[1759118290578,4.2784,210.29,210.22,7.5]
[1759118290774,7.28,210.28,210.22,7.5]
[1759118294283,11.5585,210.28,210.22,7.5]
[1759118296186,11.5585,210.28,210.22,8.88929148]
[1759118299387,7.28,210.28,210.22,7.5]
[1759118299592,7.28,210.28,210.19,8.01562706]
[1759118299593,8.66929148,210.28,210.19,8.01562706]
[1759118299794,7.62,210.27,210.18,21.38531854]
[1759118300189,1.38929148,210.28,210.18,17.10491854]
[1759118300392,7.62,210.25,210.18,7.7]
[1759118301690,4.2795,210.23,210.17,7.7]
[1759118303292,7.62,210.24,210.17,7.7]
[1759118303594,7.62,210.24,210.18,1.38929148]
[1759118304491,4.2795,210.23,210.18,1.38929148]
[1759118304994,7.47,210.22,210.19,7.89]
[1759118305189,4.279,210.26,210.19,7.89]
[1759118305388,11.749,210.26,210.19,7.89]
[1759118305588,11.749,210.26,210.2,1.38929148]
[1759118306391,7.47,210.26,210.22,1.38929148]
[1759118306595,7.47,210.26,210.23,7.89]
[1759118306790,7.47,210.28,210.23,7.89]
[1759118307493,4.2784,210.29,210.23,7.89]
[1759118307895,7.47,210.28,210.23,7.89]
[1759118308086,4.2784,210.29,210.23,7.89]
[1759118308292,7.47,210.28,210.23,7.89]
[1759118308796,7.47,210.29,210.23,7.89]
[1759118313603,4.2786,210.28,210.23,7.89]
[1759118313805,7.47,210.27,210.21,7.89]
[1759118324612,4.2789,210.26,210.21,7.89]
[1759118325414,7.47,210.25,210.21,7.89]
[1759118325804,4.2789,210.26,210.21,7.89]
[1759118326113,4.2791,210.25,210.21,7.89]
[1759118326314,7.47,210.24,210.21,7.89]
[1759118327715,7.47,210.24,210.19,7.89]
[1759118327716,4.2794,210.24,210.19,7.89]
[1759118327912,4.2794,210.24,210.18,1.38929148]
[1759118328113,11.7494,210.24,210.18,9.27929148]
[1759118333615,7.47,210.27,210.21,7.89]
[1759118338629,11.7487,210.27,210.21,7.89]
[1759118340832,4.2789,210.26,210.21,7.89]
[1759118341032,7.42,210.25,210.21,7.89]
[1759118341231,11.6989,210.26,210.2,7.47]
[1759118341927,4.2792,210.25,210.19,5.28995143]
[1759118342132,7.42,210.24,210.19,5.28995143]
[1759118342327,4.2792,210.25,210.19,12.75995143]
[1759118342532,7.42,210.24,210.19,12.75995143]
[1759118342738,4.2792,210.25,210.19,12.75995143]
[1759118342938,7.42,210.23,210.19,12.75995143]
[1759118343138,4.2793,210.24,210.19,12.75995143]
[1759118343437,7.42,210.23,210.19,12.75995143]
[1759118343826,4.2793,210.24,210.19,12.75995143]
[1759118344032,7.42,210.23,210.2,7.47]
[1759118347632,11.6995,210.23,210.2,7.47]
[1759118347842,1.38929148,210.25,210.18,12.75995143]
[1759118348139,1.38929148,210.25,210.16,5.28995143]
[1759118348140,7.42,210.22,210.16,5.28995143]
[1759118348430,7.42,210.22,210.15,12.75995143]
[1759118349136,1.38929148,210.23,210.15,12.75995143]
[1759118349326,7.42,210.22,210.15,12.75995143]
[1759118349529,4.28,210.2,210.15,12.75995143]
[1759118349726,7.42,210.19,210.16,7.47]
[1759118351343,4.28,210.2,210.16,7.47]
[1759118352042,7.42,210.19,210.16,7.47]
[1759118352244,7.65,210.19,210.16,7.47]
[1759118352845,4.28,210.2,210.16,7.47]
[1759118353044,7.65,210.19,210.16,7.47]
[1759118354137,4.28,210.2,210.16,7.47]
[1759118354343,7.65,210.19,210.16,7.47]
[1759118354543,4.28,210.2,210.16,7.47]
[1759118355045,7.65,210.19,210.16,7.47]
[1759118357134,4.28,210.2,210.16,7.47]
[1759118357343,7.65,210.19,210.16,7.47]
[1759118360639,11.9303,210.19,210.16,7.47]
[1759118361643,7.65,210.18,210.16,7.47]
[1759118361946,7.65,210.18,210.13,7.29]
[1759118362146,7.65,210.18,210.12,0.72608532]
[1759118362447,7.65,210.18,210.13,7.29]
[1759118362647,7.65,210.18,210.12,0.72608532]
[1759118363348,7.65,210.18,210.13,7.29]
[1759118363648,7.65,210.18,210.12,0.72608532]
[1759118363844,7.65,210.18,210.13,7.46]
[1759118364349,7.65,210.18,210.12,0.72608532]
[1759118364542,7.65,210.18,210.13,7.46]
[1759118364743,4.2803,210.19,210.13,7.46]
[1759118365852,11.4803,210.19,210.13,7.46]
[1759118366758,4.2798,210.21,210.13,7.46]
[1759118367048,4.2798,210.21,210.14,7.46]
[1759118369259,7.2,210.22,210.14,7.46]
[1759118369461,7.2,210.22,210.14,118.19246604]
[1759118369754,7.2,210.22,210.16,7.46]
[1759118371561,11.4798,210.22,210.16,7.46]
[1759118381368,4.2793,210.24,210.16,7.46]
[1759118381568,7.2,210.23,210.16,7.46]
[1759118382257,7.2,210.23,210.17,7.46]
[1759118382461,116.02,210.27,210.17,7.46]
[1759118382462,11.4788,210.26,210.17,7.46]
[1759118382659,11.4788,210.26,210.18,123.48]
[1759118382865,4.2791,210.25,210.19,7.46]
[1759118383066,7.2,210.26,210.19,7.46]
[1759118383867,7.2,210.22,210.19,7.46]
[1759118384868,7.2,210.22,210.16,7.46]
[1759118385770,4.2799,210.21,210.16,7.46]
[1759118386172,4.2799,210.21,210.15,5.28995143]
[1759118386567,4.2799,210.21,210.16,7.46]
[1759118386766,4.2799,210.21,210.15,5.28995143]
[1759118387067,4.2799,210.21,210.16,7.46]
[1759118387267,4.2799,210.21,210.15,5.28995143]
[1759118387670,4.2799,210.21,210.16,7.46]
[1759118387872,11.4799,210.21,210.16,7.46]
[1759118388073,11.4799,210.21,210.15,5.28995143]
[1759118388272,11.4799,210.21,210.16,7.46]
[1759118388662,11.4799,210.21,210.15,5.28995143]
[1759118388862,4.2799,210.21,210.16,7.46]
[1759118389068,11.4801,210.2,210.15,5.28995143]
[1759118389467,11.4801,210.2,210.16,7.46]
[1759118389871,11.4801,210.2,210.15,5.28995143]
[1759118390173,7.2,210.19,210.16,7.46]
[1759118390576,7.2,210.19,210.15,5.28995143]
[1759118390967,7.2,210.19,210.16,7.46]
[1759118391374,4.2801,210.2,210.17,7.46]
[1759118391575,11.4801,210.2,210.17,7.46]
[1759118392374,7.2,210.19,210.17,7.46]
[1759118392573,66.5697,210.23,210.16,5.28995143]
[1759118392768,7.2,210.22,210.16,7.46]
[1759118393168,7.2,210.22,210.16,12.74995143]
[1759118393375,4.28,210.21,210.16,12.74995143]
[1759118393673,7.2,210.2,210.17,7.46]
[1759118394069,7.2,210.2,210.16,5.28995143]
[1759118394070,4.2794,210.24,210.18,13.13995143]
[1759118394268,4.2794,210.24,210.14,10.1880931]
[1759118394269,4.2794,210.24,210.19,7.85]
[1759118394475,4.2794,210.24,210.18,7.85]
[1759118397279,4.2794,210.24,210.19,7.85]
[1759118397480,4.2794,210.24,210.18,5.28995143]
[1759118397978,4.2794,210.24,210.19,7.85]
[1759118398178,4.2794,210.24,210.18,5.28995143]
[1759118398367,4.2794,210.24,210.19,7.85]
[1759118398572,4.2794,210.24,210.18,5.28995143]
[1759118398773,4.2794,210.24,210.19,7.85]
[1759118399271,4.2794,210.24,210.18,5.28995143]
[1759118399473,7.44,210.26,210.2,13.13995143]
[1759118399676,7.44,210.31,210.21,13.13995143]
[1759118399878,7.44,210.29,210.21,13.13995143]
[1759118400181,7.44,210.29,210.22,5.28995143]
[1759118400581,4.2785,210.28,210.22,5.28995143]
[1759118402283,4.2785,210.28,210.21,13.13995143]
[1759118402475,7.44,210.27,210.21,13.13995143]
[1759118403982,7.44,210.27,210.21,5.28995143]
[1759118404183,7.44,210.27,210.22,7.85]
[1759118404383,7.44,210.28,210.22,7.85]
[1759118404684,7.44,210.28,210.23,7.85]
[1759118404879,7.44,210.3,210.22,5.28995143]
[1759118405078,7.44,210.3,210.23,7.85]
[1759118405884,11.7173,210.34,210.23,37.28]
[1759118406082,7.44,210.34,210.24,7.85]
[1759118406378,66.5383,210.33,210.24,7.85]
[1759118406587,7.44,210.32,210.24,7.85]
[1759118407688,11.7184,210.29,210.22,7.85]
[1759118409491,7.44,210.29,210.22,7.85]
[1759118411191,4.2785,210.28,210.22,7.85]
[1759118413493,4.2785,210.28,210.22,124.17]
[1759118413689,4.2785,210.28,210.23,7.72]
[1759118413889,4.2785,210.28,210.22,116.32]
[1759118414091,4.2785,210.28,210.23,7.72]
[1759118414483,12.1185,210.28,210.22,116.32]
[1759118414787,12.1185,210.28,210.23,7.72]
[1759118415189,12.1185,210.28,210.22,116.32]
[1759118415995,12.1185,210.28,210.23,7.72]
[1759118416593,12.1185,210.28,210.22,116.32]
[1759118416997,12.1185,210.28,210.23,7.72]
[1759118417598,12.1185,210.28,210.22,116.24]
[1759118417795,12.1185,210.28,210.23,7.72]
[1759118418097,12.1185,210.28,210.22,116.24]
[1759118418489,12.1185,210.28,210.23,7.72]
[1759118418692,12.1185,210.28,210.22,123.94]
[1759118418892,12.1185,210.28,210.23,7.72]
[1759118419699,12.1185,210.28,210.22,116.22]
[1759118419889,12.1185,210.28,210.23,7.72]
[1759118420089,12.1185,210.28,210.22,116.22]
[1759118420291,12.1185,210.28,210.23,7.72]
[1759118420699,12.1185,210.28,210.22,116.22]
[1759118420901,12.1185,210.28,210.23,7.72]
[1759118421100,12.1185,210.28,210.22,116.22]
[1759118421597,12.1185,210.28,210.23,7.72]
[1759118421792,12.1185,210.28,210.22,116.22]
[1759118421997,7.84,210.28,210.22,7.72]
[1759118422397,7.84,210.26,210.2,243.26954405]
[1759118422796,7.84,210.24,210.21,7.72]
[1759118423702,7.84,210.24,210.2,243.26954405]
[1759118424311,11.9187,210.27,210.21,7.47]
[1759118424713,11.9187,210.27,210.21,123.65]
[1759118427209,7.64,210.27,210.22,7.47]
[1759118427414,7.64,210.28,210.22,7.47]
[1759118428115,11.9186,210.28,210.22,7.47]
[1759118429814,4.278,210.3,210.23,7.47]
[1759118432917,4.278,210.3,210.23,12.75995143]
[1759118433416,7.64,210.29,210.23,7.47]
[1759118433615,1.3891655,210.25,210.21,5.28995143]
[1759118433911,7.64,210.24,210.18,123.81]
[1759118434318,11.9194,210.24,210.18,123.01911693]
[1759118434519,7.64,210.28,210.21,7.47]
[1759118434714,7.64,210.28,210.22,1.3891655]
[1759118435213,7.64,210.31,210.22,8.8591655]
[1759118435513,4.2782,210.29,210.22,8.8591655]
[1759118436015,11.9182,210.29,210.22,8.8591655]
[1759118437321,11.9182,210.29,210.22,14.14911693]
[1759118437510,11.9182,210.29,210.22,8.8591655]
[1759118437714,11.9182,210.29,210.22,14.14911693]
[1759118438114,11.9182,210.29,210.22,130.52911693]
[1759118438315,11.9182,210.29,210.23,5.28995143]
[1759118439017,7.64,210.29,210.24,5.28995143]
[1759118439213,7.64,210.29,210.25,7.47]
[1759118441316,7.64,210.29,210.26,7.47]
[1759118444619,7.64,210.29,210.25,5.28995143]
[1759118444922,7.64,210.29,210.26,7.47]
[1759118445118,11.9176,210.32,210.26,12.75995143]
[1759118456031,13.3067655,210.32,210.26,7.47]
[1759118456430,11.9176,210.32,210.26,7.47]
[1759118456632,13.3067655,210.32,210.26,7.47]
[1759118456932,7.55,210.31,210.25,121.60995143]
[1759118457431,7.55,210.31,210.25,129.52995143]
[1759118457626,7.55,210.29,210.25,121.60995143]
[1759118457831,7.55,210.29,210.26,7.92]
[1759118458428,4.2783,210.29,210.24,5.28995143]
[1759118458630,7.55,210.28,210.25,116.12]
[1759118459528,4.2783,210.29,210.25,116.12]
[1759118459834,7.55,210.28,210.25,116.12]
[1759118460436,4.2783,210.29,210.25,116.12]
[1759118460633,7.55,210.28,210.25,116.12]
[1759118460837,7.55,210.27,210.25,116.12]
[1759118461033,7.55,210.27,210.21,5.28995143]
[1759118461231,7.55,210.25,210.2,140.94151562]
[1759118461435,7.55,210.25,210.2,135.65156419]
[1759118461636,4.2796,210.22,210.19,13.20995143]
[1759118461836,11.8296,210.22,210.19,7.92]
[1759118462737,7.55,210.21,210.19,7.92]
[1759118463235,1.3891655,210.24,210.17,5.50753143]
[1759118463431,1.3891655,210.22,210.17,0.21758]
[1759118463636,7.55,210.21,210.17,0.21758]
[1759118463934,1.3891655,210.22,210.17,0.21758]
[1759118464741,11.8304,210.19,210.17,0.21758]
[1759118464935,7.55,210.18,210.17,0.21758]
[1759118468239,8.9391655,210.2,210.17,8.13758]
[1759118468745,7.55,210.23,210.17,0.21758]
[1759118468945,1.3891655,210.26,210.18,7.92]
[1759118469547,11.8292,210.24,210.18,7.92]
[1759118470546,7.55,210.24,210.18,7.92]
[1759118474451,7.67,210.28,210.17,122.91669693]
[1759118474648,7.67,210.28,210.21,7.74]
[1759118474945,7.67,210.27,210.21,116.02]
[1759118475249,9.0591655,210.25,210.21,116.02]
[1759118475445,7.67,210.24,210.18,142.21951457]
[1759118475640,7.67,210.24,210.19,116.02]
[1759118475843,1.3891655,210.25,210.19,123.76]
[1759118476750,7.67,210.23,210.19,123.76]
[1759118478052,7.67,210.22,210.19,7.74]
[1759118478248,7.67,210.27,210.19,7.74]
[1759118478553,7.67,210.3,210.21,9.1291655]
[1759118478752,7.67,210.3,210.23,7.74]
[1759118479054,4.2782,210.29,210.23,7.74]
[1759118479753,4.2782,210.29,210.23,123.76]
[1759118482553,7.67,210.3,210.23,7.74]
[1759118482753,7.67,210.3,210.25,7.74]
[1759118482953,7.67,210.33,210.25,7.74]
[1759118483157,7.67,210.33,210.26,98.78]
[1759118483553,7.67,210.33,210.27,7.74]
[1759118486659,7.67,210.33,210.27,12.0186]
[1759118487954,4.2776,210.32,210.27,7.74]
[1759118488158,7.24,210.32,210.26,7.23]
[1759118488359,2.17081474,210.33,210.23,48.45]
[1759118488559,68.70891474,210.33,210.23,48.45]
[1759118488757,7.24,210.32,210.23,48.45]
[1759118488948,7.24,210.32,210.23,7.23]
[1759118489150,7.24,210.32,210.23,49.48]
[1759118489354,7.24,210.32,210.24,7.23]
[1759118489655,7.24,210.28,210.24,7.23]
[1759118489857,7.24,210.28,210.23,116.0]
[1759118490252,7.24,210.28,210.22,5.28995143]
[1759118490557,7.24,210.28,210.23,7.23]
[1759118490760,7.24,210.28,210.24,7.23]
[1759118490959,7.24,210.28,210.21,9.56975143]
[1759118491159,7.24,210.28,210.22,7.23]
[1759118492161,11.5185,210.28,210.22,7.23]
[1759118492568,7.24,210.28,210.19,5.28995143]
[1759118492869,66.5512,210.29,210.18,141.70951457]
[1759118493068,7.24,210.28,210.19,116.0]
[1759118493267,11.5192,210.25,210.19,116.0]
[1759118494365,11.5192,210.25,210.18,141.70951457]
[1759118494366,11.5192,210.25,210.18,257.70951457]
[1759118494762,4.2793,210.24,210.18,257.70951457]
[1759118494958,66.5599,210.26,210.18,134.47951457]
[1759118495158,7.24,210.25,210.18,134.47951457]
[1759118495357,11.5196,210.22,210.18,134.47951457]
[1759118495763,11.5196,210.22,210.19,7.23]
[1759118495968,7.24,210.21,210.19,7.23]
[1759118496170,9.41081474,210.28,210.19,7.23]
[1759118496665,7.24,210.28,210.19,7.23]
[1759118497169,7.24,210.28,210.19,123.25]
[1759118497573,4.2786,210.27,210.19,123.25]
[1759118497760,68.72441474,210.28,210.19,7.23]
[1759118497963,7.24,210.27,210.19,7.23]
[1759118498359,7.24,210.27,210.18,134.47951457]
[1759118498360,7.24,210.26,210.18,134.47951457]
[1759118498571,7.24,210.25,210.18,134.47951457]
[1759118498776,7.24,210.24,210.18,134.47951457]
[1759118499367,4.2798,210.21,210.15,7.23]
[1759118499574,7.24,210.24,210.16,7.23]
[1759118499871,7.24,210.24,210.16,116.0]
[1759118500072,7.24,210.24,210.17,7.23]
[1759118500576,4.2794,210.23,210.17,7.23]
[1759118504170,73.8041,210.25,210.17,7.23]
[1759118504874,4.2797,210.22,210.16,7.23]
[1759118506679,4.2797,210.22,210.16,12.51995143]
[1759118507171,4.2797,210.22,210.16,7.23]
[1759118507673,68.73691474,210.24,210.15,116.0]
[1759118507877,7.24,210.22,210.14,128.53995143]
[1759118508177,7.24,210.21,210.14,123.25]
[1759118509674,4.2806,210.18,210.14,123.25]
[1759118509877,4.2806,210.18,210.15,7.23]